[Event "Khanty-Mansiysk FIDE GP"]
[Site "Khanty-Mansiysk"]
[Date "2015.05.26"]
[Round "11"]
[White "Giri, Anish"]
[Black "Caruana, Fabiano"]
[Result "1/2-1/2"]
[ECO "D40"]
[WhiteElo "2776"]
[BlackElo "2803"]
[PlyCount "74"]
[EventDate "2015.05.14"]
[EventType "tourn"]
[EventRounds "11"]
[EventCountry "RUS"]
[EventCategory "21"]
[SourceTitle "CBM 167"]
[Source "ChessBase"]
[SourceDate "2015.07.13"]
[SourceVersion "1"]
[SourceVersionDate "2015.07.13"]
[SourceQuality "1"]
[TimeControl "40/7200:20/3600:900+30"]

1. c4 {[%emt 0:00:01] One of the results that needed to go Jakovenko's way for
the Russian to qualify was for Caruana to lose. That did not come close to
happening - even though Giri's position was slightly preferable from the
opening, his attack on the kingside initiated with a quick g4 advance
backfired badly. Caruana had the much better position, he decided to play it
safe and draw the game, securing his place.} c5 {[%emt 0:00:08]} 2. Nf3 {
[%emt 0:00:21]} Nf6 {[%emt 0:00:26]} 3. Nc3 {[%emt 0:00:05]} Nc6 {[%emt 0:00:
05]} 4. e3 {[%emt 0:00:04]} e6 {[%emt 0:00:18]} 5. d4 {[%emt 0:00:08]} d5 {
[%emt 0:00:05]} 6. a3 {[%emt 0:00:13]} a6 {[%emt 0:00:24]} 7. dxc5 {[%emt 0:00:
38]} Bxc5 {[%emt 0:00:06]} 8. b4 {[%emt 0:00:03]} Ba7 {[%emt 0:00:45]} 9. Bb2 {
[%emt 0:01:09]} O-O {[%emt 0:00:24]} 10. Qc2 {[%emt 0:00:24]} Qe7 {[%emt 0:01:
05]} 11. Rd1 {[%emt 0:00:07]} Rd8 {[%emt 0:00:15]} 12. Be2 {[%emt 0:00:11]}
dxc4 {[%emt 0:01:00]} 13. Rxd8+ {[%emt 0:00:05]} Nxd8 {[%emt 0:00:18]} 14. Ne4
{[%emt 0:00:08]} Nxe4 {[%emt 0:00:25]} 15. Qxe4 {[%emt 0:00:04]} c3 {[%emt 0:
01:46]} 16. Bxc3 {[%emt 0:00:10]} Bd7 {[%emt 0:00:17]} 17. O-O {[%emt 0:00:14]}
Rc8 {[%emt 0:03:02]} 18. Bb2 $146 {[%emt 0:00:29]} (18. Rc1 Ba4 19. h4 Bb8 20.
Qb1 f5 21. g3 Nf7 22. Ba1 Rxc1+ 23. Qxc1 Bc6 24. Qc3 Nd6 25. Qc5 Bd5 26. Be5
Qd8 27. Qc2 Nf7 28. Bxb8 Qxb8 29. Nd4 Nd6 30. a4 Qc8 31. Qd1 Ne4 32. Bf1 Qc3
33. Bg2 Qxb4 34. Nxf5 Qf8 35. Bxe4 Bxe4 36. Nd4 Bd5 37. Qh5 h6 38. Qe5 Qb4 39.
f3 Qxa4 40. e4 Bc4 41. Nxe6 Qd1+ 42. Kh2 Qd2+ 43. Kg1 Qe1+ 44. Kh2 Qd2+ 45. Kg1
Qd7 46. Qb8+ Kf7 47. Nf4 a5 {Wang,H (2752)-Gelfand,B (2773) Beijing 2013 1/2-1/
2 (83)}) 18... Bc6 {[%emt 0:17:27]} 19. Qb1 {[%emt 0:03:12]} Ba4 {[%emt 0:02:
53]} 20. Bd3 {[%emt 0:03:59]} h6 {[%emt 0:00:32]} 21. Qa1 {[%emt 0:01:48]} Qf8
{[%emt 0:10:22]} 22. g4 $5 {[%emt 0:02:28]} Bb8 {[%emt 0:05:20]} 23. g5 {
[%emt 0:06:35]} hxg5 {[%emt 0:17:47]} 24. Nxg5 {[%emt 0:01:29]} f6 {[%emt 0:04:
09]} 25. Ne4 {[%emt 0:02:18]} Nf7 {[%emt 0:13:20]} 26. Qb1 {[%emt 0:05:02]} Qe7
{[%emt 0:07:52]} 27. Rc1 {[%emt 0:01:30]} Bc6 {[%emt 0:03:56]} 28. b5 {[%emt 0:
03:42]} axb5 {[%emt 0:00:58]} 29. Bxb5 {[%emt 0:00:08]} f5 {[%emt 0:08:22]} 30.
Ng3 {[%emt 0:01:50]} Ng5 {[%emt 0:02:38]} 31. Bxc6 {[%emt 0:00:30]} bxc6 {
[%emt 0:00:23]} 32. Rd1 {[%emt 0:15:14]} c5 {[%emt 0:02:00]} 33. Ba1 {[%emt 0:
02:23]} Be5 {[%emt 0:04:35]} 34. Bxe5 {[%emt 0:10:39]} Nf3+ {[%emt 0:00:03]}
35. Kg2 {[%emt 0:00:36]} Nxe5 {[%emt 0:00:03]} 36. Qb5 {[%emt 0:04:56]} Qc7 {
[%emt 0:02:46]} 37. Qa6 {[%emt 0:01:12]} Qc6+ {[%emt 0:01:30]} 1/2-1/2

[Event "Paris GCT Rapid"]
[Site "Paris"]
[Date "2017.06.23"]
[Round "9"]
[White "Vachier Lagrave, Maxime"]
[Black "Caruana, Fabiano"]
[Result "1/2-1/2"]
[ECO "C54"]
[WhiteElo "2796"]
[BlackElo "2808"]
[PlyCount "92"]
[EventDate "2017.06.21"]
[EventType "tourn (rapid)"]
[EventRounds "9"]
[EventCountry "FRA"]
[EventCategory "22"]
[SourceTitle "CBM 179"]
[Source "ChessBase"]
[SourceDate "2017.07.12"]
[SourceVersion "1"]
[SourceVersionDate "2017.07.12"]
[SourceQuality "1"]
[TimeControl "1500"]

1. e4 {[%emt 0:00:00]} e5 {[%emt 0:00:00]} 2. Nf3 {[%emt 0:00:00]} Nc6 {
[%emt 0:00:00]} 3. Bc4 {[%emt 0:00:00]} Bc5 {[%emt 0:00:00]} 4. c3 {[%emt 0:00:
00]} Nf6 {[%emt 0:00:00]} 5. d3 {[%emt 0:00:00]} d6 {[%emt 0:00:00]} 6. O-O {
[%emt 0:00:00]} a6 {[%emt 0:00:00]} 7. a4 {[%emt 0:00:00]} O-O {[%emt 0:00:00]}
8. Re1 {[%emt 0:00:00]} Be6 {[%emt 0:00:06]} 9. Bxe6 {[%emt 0:00:40]} fxe6 {
[%emt 0:00:00]} 10. b4 {[%emt 0:00:00]} Ba7 {[%emt 0:00:00]} 11. Ra2 {[%emt 0:
00:00]} Ne7 {[%emt 0:00:29]} 12. Nbd2 {[%emt 0:00:32]} Ng6 {[%emt 0:00:12]} 13.
Nf1 {[%emt 0:00:00]} Qd7 {[%emt 0:00:24]} 14. d4 {[%emt 0:00:03]} exd4 {
[%emt 0:01:34]} 15. cxd4 {[%emt 0:00:00]} d5 {[%emt 0:00:05]} 16. e5 {[%emt 0:
00:01]} Ne4 {[%emt 0:00:00]} 17. Qb3 {[%emt 0:00:00]} a5 {[%emt 0:00:16]} 18.
bxa5 {[%emt 0:02:24]} c5 {[%emt 0:00:00]} 19. Ng3 {[%emt 0:00:00]} Nxg3 {
[%emt 0:00:23]} 20. hxg3 {[%emt 0:00:00]} cxd4 {[%emt 0:00:00]} 21. Ba3 {
[%emt 0:00:34]} Rfc8 {[%emt 0:00:49]} 22. Qb5 {[%emt 0:00:36]} Qf7 {[%emt 0:00:
49]} 23. Rd2 {[%emt 0:00:35]} h6 {[%emt 0:02:36]} 24. Bb2 {[%emt 0:00:21]} Rc5
{[%emt 0:00:21]} 25. Qb3 {[%emt 0:00:29]} Rxa5 {[%emt 0:00:00]} 26. Bxd4 {
[%emt 0:00:00]} Qd7 {[%emt 0:02:01]} 27. Qb1 {[%emt 0:00:25]} Ne7 {[%emt 0:00:
38]} 28. Rb2 {[%emt 0:00:00]} Rb8 {[%emt 0:00:00]} 29. Bxa7 {[%emt 0:02:27]}
Rxa7 {[%emt 0:00:00]} 30. Rb6 {[%emt 0:00:00]} Nc6 {[%emt 0:00:21]} 31. Rc1 {
[%emt 0:00:29]} Rf8 {[%emt 0:00:00]} 32. a5 {[%emt 0:01:37]} Nxa5 {[%emt 0:00:
33]} 33. Nd4 {[%emt 0:00:00]} Nc6 {[%emt 0:01:27]} 34. Nxc6 {[%emt 0:00:21]}
bxc6 {[%emt 0:00:00]} 35. Rcxc6 {[%emt 0:00:02]} Qf7 {[%emt 0:00:27]} 36. f4 {
[%emt 0:01:00]} Ra3 {[%emt 0:01:11]} 37. Kf2 {[%emt 0:03:45]} Qa7 {[%emt 0:04:
15]} 38. Qg6 {[%emt 0:01:24]} Qa4 {[%emt 0:01:01]} 39. Kg1 {[%emt 0:02:51]}
Ra1+ {[%emt 0:01:15]} 40. Kh2 {[%emt 0:00:00]} Qd1 {[%emt 0:00:00]} 41. Qxe6+ {
[%emt 0:00:00]} Kh8 {[%emt 0:00:00]} 42. Qxh6+ {[%emt 0:00:00]} gxh6 {[%emt 0:
00:00]} 43. Rxh6+ {[%emt 0:00:00]} Kg7 {[%emt 0:00:00]} 44. Rhg6+ {[%emt 0:00:
00]} Kh7 {[%emt 0:00:00]} 45. Rh6+ {[%emt 0:00:00]} Kg7 {[%emt 0:00:00]} 46.
Rhg6+ Kh7 1/2-1/2

[Event "Norway Chess 6th"]
[Site "Stavanger"]
[Date "2018.06.03"]
[Round "6"]
[White "Aronian, Levon"]
[Black "Caruana, Fabiano"]
[Result "1/2-1/2"]
[ECO "D24"]
[WhiteElo "2764"]
[BlackElo "2822"]
[PlyCount "56"]
[EventDate "2018.05.28"]
[EventType "tourn"]
[EventRounds "9"]
[EventCountry "NOR"]
[EventCategory "22"]
[SourceTitle "CBM 185"]
[Source "ChessBase"]
[SourceDate "2018.07.13"]
[SourceVersion "1"]
[SourceVersionDate "2018.07.13"]
[SourceQuality "1"]
[TimeControl "60"]

1. d4 Nf6 2. Nf3 d5 3. c4 e6 4. Nc3 dxc4 5. e4 Bb4 6. Bxc4 Nxe4 7. O-O Nf6 8.
Qa4+ Nc6 9. Ne5 Rb8 10. d5 exd5 11. Nxd5 Nxd5 12. Nxc6 bxc6 13. Qxc6+ Qd7 14.
Bxd5 O-O 15. Qxd7 Bxd7 16. Be3 Bd6 17. b3 a5 18. Rfd1 a4 19. Rac1 axb3 20. axb3
Rfe8 21. h3 Be6 22. Bxe6 Rxe6 23. Bc5 Bxc5 24. Rxc5 g6 25. Rxc7 Rxb3 26. Rcd7
Rb8 27. Rd8+ Rxd8 28. Rxd8+ Kg7 1/2-1/2